{"text_format":"1","workbook":"xlsx","n_sheets":4,"sheets":["Berechnung","Stammdaten","Info Copyright","Dokumentation"],"not_rendered":{"charts":1,"images":5,"macros":1,"external_links":0,"defined_names":5,"comments":0,"pivot_tables":0},"unopened":[],"bounds":{"document_bytes":16777216,"sheet_cells":100000,"rows_first":2000,"rows_last":500,"rows_between":2000,"halvings":0,"cell_chars":16384,"cell_head_chars":4096},"cells_cut":0,"cells_raw":0,"read":"whole","date_system":"1900"}

{"sheet":"Berechnung","index":0,"n_rows":46,"n_cols":28,"rows_kept":46,"cut":false,"hidden":false,"merged":[[31,12,31,14],[31,9,32,9],[29,5,30,10],[29,12,30,12],[8,9,9,9],[8,12,9,12],[8,14,9,14],[8,8,9,8],[8,5,9,5],[8,7,9,7],[8,6,9,6],[29,15,30,15],[27,0,28,0],[2,5,3,5],[6,5,6,8],[10,8,11,8],[6,9,6,10],[27,1,28,1],[27,2,28,2],[27,3,28,3],[7,1,7,3],[2,1,2,3],[8,15,9,15],[8,11,9,11],[29,14,30,14],[10,1,10,3],[10,6,11,6],[33,0,34,0],[33,1,34,3],[31,5,32,5],[31,6,32,6],[31,7,32,7],[31,0,32,0],[31,1,32,3],[11,1,11,3],[0,0,0,15],[2,14,3,14],[2,15,3,15],[2,12,3,12],[3,1,3,3],[8,1,8,3],[4,1,4,3],[5,1,5,3],[6,1,6,3],[9,1,9,3]]}
["POSITIONIERUNGSHILFE FÜR BERUFE IM GESUNDHEITSWESEN   EQR / ECVET",null,null,null,null,null,null,null,null,null,null,null,null,null,null,null,null,null,null,null,null,null,null,null,null,"A","B","C"]
[null,null,null,null,null,null,null,null,null,null,null,null,null,null,null,null,null,null,null,null,null,null,null,null,null,"A\nTertiär B","B\nSek II","C\nSek II Attest"]
["Name",null,null,null,null,"Grundbildung",null,null,null,null,null,null,"Von / Im",null,"Bis","ECVET",null,null,null,null,null,null,null,null,"Ø ECVET ",{"$f":"IF(V12=2,288,IF(V12=3,384,IF(V12=4,384,IF(V12=5,288,IF(V12=6,288,IF(V12=7,324,IF(V12=8,288,IF(V12=9,288,\"\"))))))))","v":""},{"$f":"IF(V12=10,252,IF(V12=11,252,IF(V12=12,252,IF(V12=13,252,IF(V12=14,204,IF(V12=15,156,\"\"))))))","v":""},{"$f":"IF(V12=16,156,IF(V12=17,156,IF(V12=18,72,IF(V12=19,72,0))))","v":0}]
[null,null,null,null,null,null,null,null,null,null,null,null,null,null,null,null,null,null,null,null,null,null,"Grundbildung",null,{"$f":"CONCATENATE(B3,\" \",B5)","v":" "},{"$f":"IF(W5=1,0,IF(W5<=9,P46,IF(W5=20,P46,IF(W5=23,P46,IF(W11=2,P46,IF(W13=2,P46,IF(W15=2,P46,IF(W17=2,P46,IF(W19=2,P46,IF(W21=2,P46,IF(W23=2,P46,IF(W25=2,P46,IF(W27=2,P46,IF(W29=2,P46,\"\"))))))))))))))","v":0},{"$f":"IF(W5=1,0,IF(W11=2,\"\",IF(W13=2,\"\",IF(W15=2,\"\",IF(W17=2,\"\",IF(W19=2,\"\",IF(W21=2,\"\",IF(V33=2,\"\",IF(W25=2,\"\",IF(W27=2,\"\",IF(W29=2,\"\",IF(AND(W5>=10,W5<=15),P46,IF(W5=21,P46,IF(W5=22,P46,IF(W5=24,P46,IF(W5=25,P46,IF(W5=26,P46,\"\")))))))))))))))))","v":0},{"$f":"IF(W5=1,0,IF(W5=16,P46,IF(W5=17,P46,IF(W5=18,P46,IF(W5=19,P46,IF(W5=27,P46,\"\"))))))","v":0}]
["Vorname",null,null,null,null,null,null,null,null,null,null,null,null,null,null,{"$f":"IF(W5=2,288,IF(W5=3,384,IF(W5=4,384,IF(W5=4,288,IF(W5=5,288,IF(W5=6,288,IF(W5=7,324,IF(W5=8,288,IF(W5=9,288,IF(W5=10,252,IF(W5=11,252,IF(W5=12,252,IF(W5=13,252,IF(W5=14,204,IF(W5=15,156,IF(W5=16,156,IF(W5=17,156,IF(W5=18,72,IF(W5=19,72,IF(W5=20,288,IF(W5=21,252,IF(W5=22,252,IF(W5=23,288,IF(W5=24,252,IF(W5=25,252,IF(W5=26,252,IF(W5=27,156,0)))))))))))))))))))))))))))","v":0},null,null,null,null,null,null,1]
[]
["PLZ / Ort",null,null,null,null,"In den vergangenen 6 Jahren im Beruf tätig?",null,null,null,null,null,null,null,null,null,{"$f":"IF(W5=1,0,IF(W33=TRUE,0,((P5+P44)*10/100*-1)))","v":0}]
[]
["Geb.-Dat",null,null,null,null,"Zertifizierte \nFort- und Weiterbildungen",null,"Anzahl \nLernstunden",null,"Effektive \nLernstunden",null,null,null,null,null,"ECVET"]
[null,null,null,null,null,null,null,null,null,null,null,null,null,null,null,null,null,null,null,null,null,null,"Weiterbildung"]
["Bewerbung als",null,null,null,null,null,null,{"$f":"IF(W11=1,\"\",IF(W11=2,500,IF(W11=3,500,IF(W11=4,330,IF(W11=5,600,IF(W11=6,518,IF(W11=7,609,IF(W11=8,341,IF(W11=9,42,IF(W11=10,112,IF(W11=11,42,IF(W11=12,29,IF(W11=13,48,IF(W11=14,96,IF(W11=15,336,IF(W11=16,2700,IF(W11=17,1800,IF(W11=18,25,IF(W11=19,25,IF(W11=20,160,IF(W11=21,72,IF(W11=22,32,IF(W11=23,32,IF(W11=24,32,IF(W11=25,150,IF(W11=26,60,\"\"))))))))))))))))))))))))))","v":""},null,null,null,null,null,null,null,{"$f":"ROUND(IF(W11=1,0,(H11/30)),0)","v":0},null,null,null,null,null,"Bewerbung als",1,{"$f":"W11","v":1}]
[null,null,null,null,null,null,null,null,null,null,null,null,null,null,null,null,null,null,null,null,null,1]
[null,null,null,null,null,null,null,{"$f":"IF(W13=1,\"\",IF(W13=2,500,IF(W13=3,500,IF(W13=4,330,IF(W13=5,600,IF(W13=6,518,IF(W13=7,609,IF(W13=8,341,IF(W13=9,42,IF(W13=10,112,IF(W13=11,42,IF(W13=12,29,IF(W13=13,48,IF(W13=14,96,IF(W13=15,336,IF(W13=16,2700,IF(W13=17,1800,IF(W13=18,25,IF(W13=19,25,IF(W13=20,160,IF(W13=21,72,IF(W13=22,32,IF(W13=23,32,IF(W13=24,32,IF(W13=25,150,IF(W13=26,60,\"\"))))))))))))))))))))))))))","v":""},null,null,null,null,null,null,null,{"$f":"ROUND(IF(W13=1,0,(H13/30)),0)","v":0},null,null,null,null,null,null,1,{"$f":"W13","v":1}]
[]
[null,null,null,null,null,null,null,{"$f":"IF(W15=1,\"\",IF(W15=2,500,IF(W15=3,500,IF(W15=4,330,IF(W15=5,600,IF(W15=6,518,IF(W15=7,609,IF(W15=8,341,IF(W15=9,42,IF(W15=10,112,IF(W15=11,42,IF(W15=12,29,IF(W15=13,48,IF(W15=14,96,IF(W15=15,336,IF(W15=16,2700,IF(W15=17,1800,IF(W15=18,25,IF(W15=19,25,IF(W15=20,160,IF(W15=21,72,IF(W15=22,32,IF(W15=23,32,IF(W15=24,32,IF(W15=25,150,IF(W15=26,60,\"\"))))))))))))))))))))))))))","v":""},null,null,null,null,null,null,null,{"$f":"ROUND(IF(W15=1,0,(H15/30)),0)","v":0},null,null,null,null,null,null,1,{"$f":"W15","v":1}]
[null,null,null,null,null,null,null,null,null,null,null,null,null,null,null,null,null,null,null,null,null,null,null,{"$f":"W16","v":0}]
[null,null,null,null,null,null,null,{"$f":"IF(W17=1,\"\",IF(W17=2,500,IF(W17=3,500,IF(W17=4,330,IF(W17=5,600,IF(W17=6,518,IF(W17=7,609,IF(W17=8,341,IF(W17=9,42,IF(W17=10,112,IF(W17=11,42,IF(W17=12,29,IF(W17=13,48,IF(W17=14,96,IF(W17=15,336,IF(W17=16,2700,IF(W17=17,1800,IF(W17=18,25,IF(W17=19,25,IF(W17=20,160,IF(W17=21,72,IF(W17=22,32,IF(W17=23,32,IF(W17=24,32,IF(W17=25,150,IF(W17=26,60,\"\"))))))))))))))))))))))))))","v":""},null,null,null,null,null,null,null,{"$f":"ROUND(IF(W17=1,0,(H17/30)),0)","v":0},null,null,null,null,null,null,1,1]
[null,null,null,null,null,null,null,null,null,null,null,null,null,null,null,null,null,null,null,null,null,null,null,0]
[null,null,null,null,null,null,null,{"$f":"IF(W19=1,\"\",IF(W19=2,500,IF(W19=3,500,IF(W19=4,330,IF(W19=5,600,IF(W19=6,518,IF(W19=7,609,IF(W19=8,341,IF(W19=9,42,IF(W19=10,112,IF(W19=11,42,IF(W19=12,29,IF(W19=13,48,IF(W19=14,96,IF(W19=15,336,IF(W19=16,2700,IF(W19=17,1800,IF(W19=18,25,IF(W19=19,25,IF(W19=20,160,IF(W19=21,72,IF(W19=22,32,IF(W19=23,32,IF(W19=24,32,IF(W19=25,150,IF(W19=26,60,\"\"))))))))))))))))))))))))))","v":""},null,null,null,null,null,null,null,{"$f":"ROUND(IF(W19=1,0,(H19/30)),0)","v":0},null,null,null,null,null,null,1,1]
[null,null,null,null,null,null,null,null,null,null,null,null,null,null,null,null,null,null,null,null,null,null,null,0]
[null,null,null,null,null,null,null,{"$f":"IF(W21=1,\"\",IF(W21=2,500,IF(W21=3,500,IF(W21=4,330,IF(W21=5,600,IF(W21=6,518,IF(W21=7,609,IF(W21=8,341,IF(W21=9,42,IF(W21=10,112,IF(W21=11,42,IF(W21=12,29,IF(W21=13,48,IF(W21=14,96,IF(W21=15,336,IF(W21=16,2700,IF(W21=17,1800,IF(W21=18,25,IF(W21=19,25,IF(W21=20,160,IF(W21=21,72,IF(W21=22,32,IF(W21=23,32,IF(W21=24,32,IF(W21=25,150,IF(W21=26,60,\"\"))))))))))))))))))))))))))","v":""},null,null,null,null,null,null,null,{"$f":"ROUND(IF(W21=1,0,(H21/30)),0)","v":0},null,null,null,null,null,null,1,1]
[null,null,null,null,null,null,null,null,null,null,null,null,null,null,null,null,null,null,null,null,null,null,null,0]
[null,null,null,null,null,null,null,{"$f":"IF(W23=1,\"\",IF(W23=2,500,IF(W23=3,500,IF(W23=4,330,IF(W23=5,600,IF(W23=6,518,IF(W23=7,609,IF(W23=8,341,IF(W23=9,42,IF(W23=10,112,IF(W23=11,42,IF(W23=12,29,IF(W23=13,48,IF(W23=14,96,IF(W23=15,336,IF(W23=16,2700,IF(W23=17,1800,IF(W23=18,25,IF(W23=19,25,IF(W23=20,160,IF(W23=21,72,IF(W23=22,32,IF(W23=23,32,IF(W23=24,32,IF(W23=25,150,IF(W23=26,60,\"\"))))))))))))))))))))))))))","v":""},null,null,null,null,null,null,null,{"$f":"ROUND(IF(W23=1,0,(H23/30)),0)","v":0},null,null,null,null,null,null,1,1]
[null,null,null,null,null,null,null,null,null,null,null,null,null,null,null,null,null,null,null,null,null,null,null,0,"Ø ECVET "]
[null,null,null,null,null,null,null,{"$f":"IF(W25=1,\"\",IF(W25=2,500,IF(W25=3,500,IF(W25=4,330,IF(W25=5,600,IF(W25=6,518,IF(W25=7,609,IF(W25=8,341,IF(W25=9,42,IF(W25=10,112,IF(W25=11,42,IF(W25=12,29,IF(W25=13,48,IF(W25=14,96,IF(W25=15,336,IF(W25=16,2700,IF(W25=17,1800,IF(W25=18,25,IF(W25=19,25,IF(W25=20,160,IF(W25=21,72,IF(W25=22,32,IF(W25=23,32,IF(W25=24,32,IF(W25=25,150,IF(W25=26,60,\"\"))))))))))))))))))))))))))","v":""},null,null,null,null,null,null,null,{"$f":"ROUND(IF(W25=1,0,(H25/30)),0)","v":0},null,null,null,null,null,null,1,1]
[null,null,null,null,null,null,null,null,null,null,null,null,null,null,null,null,null,null,null,null,null,null,null,0]
[null,null,null,null,null,null,null,{"$f":"IF(W27=1,\"\",IF(W27=2,500,IF(W27=3,500,IF(W27=4,330,IF(W27=5,600,IF(W27=6,518,IF(W27=7,609,IF(W27=8,341,IF(W27=9,42,IF(W27=10,112,IF(W27=11,42,IF(W27=12,29,IF(W27=13,48,IF(W27=14,96,IF(W27=15,336,IF(W27=16,2700,IF(W27=17,1800,IF(W27=18,25,IF(W27=19,25,IF(W27=20,160,IF(W27=21,72,IF(W27=22,32,IF(W27=23,32,IF(W27=24,32,IF(W27=25,150,IF(W27=26,60,\"\"))))))))))))))))))))))))))","v":""},null,null,null,null,null,null,null,{"$f":"ROUND(IF(W27=1,0,(H27/30)),0)","v":0},null,null,null,null,null,null,1,1]
["Vergleich IST / SOLL","A\nTertiär B","B\nSek II","C \nSek II Attest",null,null,null,null,null,null,null,null,null,null,null,null,null,null,null,null,null,null,null,0]
[null,null,null,null,null,null,null,{"$f":"IF(W29=1,\"\",IF(W29=2,500,IF(W29=3,500,IF(W29=4,330,IF(W29=5,600,IF(W29=6,518,IF(W29=7,609,IF(W29=8,341,IF(W29=9,42,IF(W29=10,112,IF(W29=11,42,IF(W29=12,29,IF(W29=13,48,IF(W29=14,96,IF(W29=15,336,IF(W29=16,2700,IF(W29=17,1800,IF(W29=18,25,IF(W29=19,25,IF(W29=20,160,IF(W29=21,72,IF(W29=22,32,IF(W29=23,32,IF(W29=24,32,IF(W29=25,150,IF(W29=26,60,\"\"))))))))))))))))))))))))))","v":""},null,null,null,null,null,null,null,{"$f":"ROUND(IF(W29=1,0,(H29/30)),0)","v":0},null,null,null,null,null,null,1,1]
[{"$f":"CONCATENATE(\"IST\",\" \",B3,\" \",B5)","v":"IST  "},{"$f":"IF(Z4=\"\",0,Z4)","v":0},{"$f":"IF(AA4=\"\",0,AA4)","v":0},{"$f":"IF(AB4=\"\",0,AB4)","v":0},null,null,null,null,null,null,null,null,"Von / Im",null,"Bis","ECVET"]
["Ø ECVET ",{"$f":"IF(Z3=\"\",0,Z3)","v":0},{"$f":"IF(AA3=\"\",0,AA3)","v":0},{"$f":"IF(AB3=\"\",0,AB3)","v":0}]
["GAP in ECVET-Punkten",{"$f":"IF(B30+C30+D30-B31-C31-D31=0,0,B30+C30+D30-B31-C31-D31)","v":0},null,null,null,"Freie\nFort- und Weiterbildungen",null,"Vorschlag LS\nH+ Bildung"]
[null,null,null,null,null,null,null,null,null,null,null,null,null,null,null,null,true,null,null,null,null,"Berufstätig",false]
["GAP in Lernstunden",{"$f":"SUM(B32*30)","v":0},null,null,null,null,null,{"$f":"IF(W35=1,\"\",IF(W35=2,42,IF(W35=3,500,IF(W35=4,650))))","v":""},null,null,null,null,null,null,null,{"$f":"IF(AND(W35>1,J34=\"\"),(H34/30),J34/30)","v":0},null,null,null,null,null,null,null,null,null,{"$f":"IF(W5<=9,P46,IF(W5=20,P46,IF(W5=23,P46,IF(W11=2,P46,IF(W13=2,P46,IF(W15=2,P46,IF(W17=2,P46,IF(W19=2,P46,IF(W21=2,P46,IF(W23=2,P46,IF(W25=2,P46,IF(W27=2,P46,IF(W29=2,P46,\"\")))))))))))))","v":0}]
[null,null,null,null,null,null,null,null,null,null,null,null,null,null,null,null,null,null,null,null,null,null,1]
[null,null,null,null,null,null,null,{"$f":"IF(W37=1,\"\",IF(W37=2,42,IF(W37=3,500,IF(W37=4,650))))","v":""},null,null,null,null,null,null,null,{"$f":"IF(AND(W37>1,J36=\"\"),(H36/30),J36/30)","v":0}]
[null,null,null,null,null,null,null,null,null,null,null,null,null,null,null,null,null,null,null,null,null,null,1]
[null,null,null,null,null,null,null,{"$f":"IF(W39=1,\"\",IF(W39=2,42,IF(W39=3,500,IF(W39=4,650))))","v":""},null,null,null,null,null,null,null,{"$f":"IF(AND(W39>1,J38=\"\"),(H38/30),J38/30)","v":0}]
[null,null,null,null,null,null,null,null,null,null,null,null,null,null,null,null,null,null,null,null,null,1,1]
[null,null,null,null,null,null,null,null,null,null,null,null,null,null,null,{"$f":"IF(J40>0,J40/30,0)","v":0}]
[]
[null,null,null,null,null,null,null,null,null,null,null,null,null,null,null,{"$f":"IF(J42>0,J42/30,0)","v":0}]
[null,null,null,null,null,null,null,null,null,null,null,null,null,null,null,null,null,null,null,null,null,null,true]
[null,null,null,null,null,"TOTAL WEITERBILDUNGEN",null,null,null,null,null,null,null,null,null,{"$f":"SUM(P11,P13,P15,P17,P19,P21,P23,P25,P27,P29,P34,P36,P38,P40,P42)","v":0}]
[]
[null,null,null,null,null,"TOTAL INSGESAMT",null,null,null,null,null,null,null,null,null,{"$f":"SUM(P5+P7+P44)","v":0}]

{"sheet":"Stammdaten","index":1,"n_rows":28,"n_cols":4,"rows_kept":28,"cut":false,"hidden":true,"merged":[]}
["Grundbildung","Zertifizierte Fortbildungen","Freie Fortbildungen","Bewerben als"]
[]
["A   Dipl. Krankenschwester/-pfleger AKP","FaLB mit eidg. FA","Führungsausbildung unteres Kader","A   Dipl. Krankenschwester/-pfleger AKP"]
["A   Dipl. Krankenschwester/-pfleger DN2","FaLB","Führungsausbildung mittleres Kader","A   Dipl. Krankenschwester/-pfleger DN2"]
["A   Dipl. Krankenschwester/-pfleger IKP","HöFa I","Führungsausbildung oberes Kader","A   Dipl. Krankenschwester/-pfleger IKP"]
["A   Dipl. Krankenschwester/-pfleger KWS","HöFa II",null,"A   Dipl. Krankenschwester/-pfleger KWS"]
["A   Dipl. Krankenschwester/-pfleger PSY-KP","WEX",null,"A   Dipl. Krankenschwester/-pfleger PSY-KP"]
["A   Dipl. Pflegefachfrau/-mann FH","Eidg. Führungsausbildung Management",null,"A   Dipl. Pflegefachfrau/-mann FH"]
["A   Dipl. Pflegefachfrau/-mann HF","Eidg. Führungsausbildung Leadership",null,"A   Dipl. Pflegefachfrau/-mann HF"]
["A   Hebamme","Agressionsmanagement NAGS",null,"A   Hebamme"]
["B   Deutsche/-r Altenpfleger/-in","Bobath Grundkurs (IBITA-anerkannt)",null,"B   Deutsche/-r Altenpfleger/-in"]
["B   Dipl. Krankenschwester/-pfleger DN1","Bobath Aufbaukurs (IBITA-anerkannt)",null,"B   Dipl. Krankenschwester/-pfleger DN1"]
["B   Fachfrau/-mann Betreuung","Palliative Care Level A1",null,"B   Fachfrau/-mann Betreuung"]
["B   Fachfrau/-mann Gesundheit","Palliative Care Level A2",null,"B   Fachfrau/-mann Gesundheit"]
["B   Gemeindekrankenschwester/-pfleger","Palliative Care Level B1",null,"B   Gemeindekrankenschwester/-pfleger"]
["B   Krankenpfleger/-in FASRK","Palliative Care Level B2",null,"B   Krankenpfleger/-in FASRK"]
["C   AGS","Palliative Care Level C Master of Science",null,"C   AGS"]
["C   Medizinische/-r Praxisassistent/-in","Palliative Care Level C Master of Adv. Studies",null,"C   Medizinische/-r Praxisassistent/-in"]
["C   Pflegeassistentin/-en","Basale Stimmulation Grundkurs",null,"C   Pflegeassistentin/-en"]
["C   Pflegehelfer/-in SRK","Basale Stimmulation Aufbaukurs",null,"C   Pflegehelfer/-in SRK"]
["Dipl. Krankenschwester (Deutschland)","Validation Worker (Anwender)"]
["Dipl. Krankenschwester (Indien)","Validation Group-Leader"]
["Dipl. Krankenschwester (Mazedonien)","Validation Teacher"]
["Dipl. Krankenschwester (Polen)","Kinestethic Grundkurs"]
["Dipl. Krankenschwester (Russland)","Kinestethic Aufbaukurs"]
["Dipl. Krankenschwester (Serbien)","SRK Lehrgang Langzeitpflege Hilfspersonal"]
["Dipl. Krankenschwester (Kroatien)","SRK Lehrgang Demenzbetreuung Hilfspersonal"]
["Hauspflegerin 3-Jährig EFZ"]

{"sheet":"Info Copyright","index":2,"n_rows":0,"n_cols":0,"rows_kept":0,"cut":false,"hidden":false,"merged":[]}

{"sheet":"Dokumentation","index":3,"n_rows":32,"n_cols":9,"rows_kept":32,"cut":false,"hidden":false,"merged":[]}
["Die Gewichtung der einzelnen Berufe sowie Fort- und Weiterbildungen bezüglich ECVET"]
[]
["Bewerben als","ECVET",null,"Grundbildung","ECVET",null,"Zertifizierte Fortbildungen","LS*","ECVET"]
[null,null,null,null,null,null,"FaLB mit eidg. FA",500,{"$f":"SUM(H4/30)","v":16.666666666666668}]
["A   Dipl. Krankenschwester/-pfleger AKP",288,null,"A   Dipl. Krankenschwester/-pfleger AKP",288,null,"FaLB",500,{"$f":"SUM(H5/30)","v":16.666666666666668}]
["A   Dipl. Krankenschwester/-pfleger DN2",384,null,"A   Dipl. Krankenschwester/-pfleger DN2",384,null,"HöFa 1",330,11]
["A   Dipl. Krankenschwester/-pfleger IKP",384,null,"A   Dipl. Krankenschwester/-pfleger IKP",384,null,"HöFa 2",600,20]
["A   Dipl. Krankenschwester/-pfleger KWS",288,null,"A   Dipl. Krankenschwester/-pfleger KWS",288,null,"WEX",518,{"$f":"SUM(H8/30)","v":17.266666666666666}]
["A   Dipl. Krankenschwester/-pfleger PSY-KP",288,null,"A   Dipl. Krankenschwester/-pfleger PSY-KP",288,null,"Eidg. Führungsausbildung Management",609,20.3]
["A   Dipl. Pflegefachfrau/-mann FH",324,null,"A   Dipl. Pflegefachfrau/-mann FH",324,null,"Eidg. Führungsausbildung Leadership",341,11.366666666666667]
["A   Dipl. Pflegefachfrau/-mann HF",288,null,"A   Dipl. Pflegefachfrau/-mann HF",288,null,"Agressionsmanagement NAGS",42,1.4]
["A   Hebamme",288,null,"A   Hebamme",288,null,"Bobath Grundkurs (IBITA-anerkannt)",112,3.7333333333333334]
["B   Deutsche/-r Altenpfleger/-in",252,null,"B   Deutsche/-r Altenpfleger/-in",252,null,"Bobath Aufbaukurs (IBITA-anerkannt)",42,1.4]
["B   Dipl. Krankenschwester/-pfleger DN1",252,null,"B   Dipl. Krankenschwester/-pfleger DN1",252,null,"Palliative Care Level A1",29,0.96666666666666667]
["B   Fachfrau/-mann Betreuung",252,null,"B   Fachfrau/-mann Betreuung",252,null,"Palliative Care Level A2",48,1.6]
["B   Fachfrau/-mann Gesundheit",252,null,"B   Fachfrau/-mann Gesundheit",252,null,"Palliative Care Level B1",96,3.2]
["B   Gemeindekrankenschwester/-pfleger",204,null,"B   Gemeindekrankenschwester/-pfleger",204,null,"Palliative Care Level B2",336,11.2]
["B   Krankenpfleger/-in FASRK",156,null,"B   Krankenpfleger/-in FASRK",156,null,"Palliative Care Level C Master of Science",2700,90]
["C   AGS",156,null,"C   AGS",156,null,"Palliative Care Level C Master of Adv. Studies",1800,60]
["C   Medizinische/-r Praxisassistent/-in",156,null,"C   Medizinische/-r Praxisassistent/-in",156,null,"Basale Stimmulation Grundkurs",25,0.83333333333333337]
["C   Pflegeassistentin/-en",72,null,"C   Pflegeassistentin/-en",72,null,"Basale Stimmulation Aufbaukurs",25,0.83333333333333337]
["C   Pflegehelfer/-in SRK",72,null,"C   Pflegehelfer/-in SRK",72,null,"Validation Worker (Anwender)",160,5.333333333333333]
[null,null,null,"Dipl. Krankenschwester (Deutschland)",288,null,"Validation Group-Leader",72,2.4]
[null,null,null,"Dipl. Krankenschwester (Indien)",252,null,"Validation Teacher",32,1.0666666666666667]
[null,null,null,"Dipl. Krankenschwester (Mazedonien)",252,null,"Kinestethic Grundkurs",32,1.0666666666666667]
[null,null,null,"Dipl. Krankenschwester (Polen)",288,null,"Kinestethic Aufbaukurs",32,1.0666666666666667]
[null,null,null,"Dipl. Krankenschwester (Russland)",252,null,"SRK Lehrgang Langzeitpflege Hilfspersonal",150,5]
[null,null,null,"Dipl. Krankenschwester (Serbien)",252,null,"SRK Lehrgang Demenzbetreuung Hilfspersonal",60,{"$f":"SUM(H28/30)","v":2}]
[null,null,null,"Dipl. Krankenschwester (Kroatien)",252,null,"Freie Fortbildungen","LS*","ECVET"]
[null,null,null,"Hauspflegerin 3-Jährig EFZ",156,null,"Führungsausbildung unteres Kader",42,{"$f":"SUM(H30/30)","v":1.4}]
[null,null,null,null,null,null,"Führungsausbildung mittleres Kader",500,{"$f":"SUM(H31/30)","v":16.666666666666668}]
[null,null,null,"* LS = Lernstunden",null,null,"Führungsausbildung oberes Kader",650,{"$f":"SUM(H32/30)","v":21.666666666666668}]